bitfinex/quotes_SOLUSD_20260305
["timestamp","ask_amount","ask_price","bid_price","bid_amount"]
[1772707982855,10.76785579,92.869,92.818,1.3323471]
[1772707983146,10.76785579,92.869,92.81,18.6164356]
[1772707983147,10.01865523,92.84,92.81,18.6164356]
[1772707983526,10.01865523,92.83,92.81,15.7408936]
[1772707983731,10.01865523,92.82,92.81,15.7408936]
[1772707984131,10.01865523,92.82,92.744,1.3323471]
[1772707984443,10.01865523,92.81,92.747,1.3323471]
[1772707984631,10.01865523,92.8,92.749,1.3323471]
[1772707984847,10.01865523,92.8,92.75,1.3323471]
[1772707985042,10.01865523,92.8,92.752,1.3323471]
[1772707985351,10.01865523,92.83,92.755,0.14216157]
[1772707985652,10.01865523,92.83,92.752,0.14216157]
[1772707985653,0.02157443,92.799,92.752,1.3323471]
[1772707986036,10.01865523,92.79,92.752,1.3323471]
[1772707986240,0.02157443,92.799,92.752,1.3323471]
[1772707986435,10.01865523,92.79,92.752,1.3323471]
[1772707986637,0.14216157,92.823,92.751,10.78155491]
[1772707986638,0.02157443,92.789,92.751,10.78155491]
[1772707986843,0.02438338,92.779,92.75,14.86968639]
[1772707987138,10.01865523,92.77,92.75,14.86968639]
[1772707987458,10.01865523,92.76,92.725,1.34407814]
[1772707987655,10.01865523,92.77,92.725,12.12860147]
[1772707988036,10.77830112,92.779,92.726,1.34407814]
[1772707988242,10.01865523,92.76,92.699,1.34407814]
[1772707988439,10.01865523,92.74,92.699,1.34407814]
[1772707989138,0.14216157,92.773,92.692,10.78841755]
[1772707989139,10.01865523,92.73,92.692,10.78841755]
[1772707989334,10.01865523,92.71,92.691,0.68618312]
[1772707989558,10.01865523,92.72,92.691,11.47469279]
[1772707989766,10.01865523,92.72,92.691,0.68618312]
[1772707990051,10.01865523,92.73,92.692,10.78841755]
[1772707990244,10.01865523,92.73,92.691,0.68618312]
[1772707991236,10.01865523,92.74,92.691,12.81877701]
[1772707991552,10.01865523,92.73,92.691,0.68618312]
[1772707991856,10.01865523,92.71,92.691,0.68618312]
[1772707992066,37.73300127,92.757,92.691,11.4746235]
[1772707992364,10.01865523,92.73,92.691,11.4746235]
[1772707993137,10.78411284,92.729,92.691,11.4746235]
[1772707993338,10.01865523,92.72,92.691,11.4746235]
[1772707993561,10.78411284,92.729,92.691,11.4746235]
[1772707993758,26.95308711,92.754,92.692,1.34407814]
[1772707994062,10.01865523,92.74,92.692,1.34407814]
[1772707994734,10.01865523,92.73,92.692,1.34407814]
[1772707994938,0.02245921,92.739,92.692,1.34407814]
[1772707995576,0.02245921,92.739,92.694,1.34407814]
[1772707995760,10.01865523,92.76,92.694,1.34407814]
[1772707995962,0.02502642,92.759,92.694,1.34407814]
[1772707996260,0.02502642,92.759,92.693,37.75905407]
[1772707996261,0.02502642,92.729,92.693,10.78830116]
[1772707996758,10.01865523,92.75,92.694,1.34407814]
[1772707997256,10.01865523,92.76,92.694,1.34407814]
[1772707997466,0.02754279,92.772,92.699,1.34407814]
[1772707997756,0.03002608,92.789,92.699,1.62840128]
[1772707997958,0.03002608,92.779,92.699,1.62840128]
[1772707998676,10.01865523,92.79,92.699,1.62840128]
[1772707999036,0.03491406,92.792,92.699,1.62840128]
[1772707999363,80.8050336,92.816,92.699,1.62840128]
[1772707999364,10.05356929,92.79,92.699,1.62840128]
[1772707999532,10.81205359,92.789,92.704,1.62840128]
[1772707999949,0.03731888,92.788,92.704,1.62840128]
[1772708000477,0.03731888,92.779,92.704,1.62840128]
[1772708001162,10.01865523,92.77,92.704,1.34407814]
[1772708001564,0.03731888,92.779,92.709,1.34407814]
[1772708002274,0.04206513,92.769,92.709,1.34407814]
[1772708002656,10.06304456,92.78,92.709,1.34407814]
[1772708002863,0.04438933,92.779,92.709,1.62840128]
[1772708003465,0.04438933,92.778,92.712,1.34407814]
[1772708004059,0.04669574,92.769,92.712,1.34407814]
[1772708004359,0.04669574,92.759,92.712,1.34407814]
[1772708004560,0.04669574,92.749,92.712,1.34407814]
[1772708005497,10.06764484,92.76,92.712,1.34407814]
[1772708005781,0.05123865,92.758,92.714,1.34407814]
[1772708008399,0.05123865,92.758,92.715,10.78574125]
[1772708008859,0.06001623,92.749,92.672,3.69383402]
[1772708009057,37.73218771,92.759,92.692,10.78841755]
[1772708009058,0.06001623,92.729,92.692,10.78841755]
[1772708009257,10.01865523,92.72,92.692,10.78841755]
[1772708009571,0.06001623,92.719,92.687,10.78889551]
[1772708009776,0.06001623,92.719,92.669,26.97760444]
[1772708009777,10.01865523,92.71,92.691,0.62473523]
[1772708010165,80.85468795,92.759,92.691,0.62473523]
[1772708010375,10.78411284,92.729,92.693,10.78830116]
[1772708010576,10.78411284,92.729,92.693,12.16310325]
[1772708010982,10.78411284,92.729,92.694,1.37480209]
[1772708011510,10.01865523,92.75,92.694,1.37480209]
[1772708011961,10.01865523,92.76,92.694,1.37480209]
[1772708012383,10.78062506,92.759,92.696,1.37480209]
[1772708012885,10.01865523,92.75,92.696,1.37480209]
[1772708013189,10.78062506,92.759,92.696,1.37480209]
[1772708013893,6.68417826,92.776,92.699,1.37480209]
[1772708014100,6.68417826,92.776,92.699,1.65912523]
[1772708014389,10.77827164,92.78,92.7,1.65912523]
[1772708014697,26.94119385,92.795,92.708,0.14216157]
[1772708014988,10.77597818,92.799,92.711,1.65912523]
[1772708015191,10.01865523,92.82,92.714,1.37480209]
[1772708015392,10.01865523,92.81,92.714,1.65912523]
[1772708015772,10.01865523,92.8,92.714,1.65912523]
[1772708016171,140.26842178,92.833,92.714,1.65912523]
[1772708016490,140.26842178,92.833,92.704,3.69383402]
[1772708016491,8.60266464,92.81,92.721,1.65912523]
[1772708016691,8.60266464,92.79,92.721,1.65912523]
[1772708016886,8.60266464,92.78,92.721,1.37480209]
[1772708017371,8.60266464,92.79,92.721,1.65912523]
[1772708018672,37.71998835,92.789,92.723,1.37480209]
[1772708019799,0.0211024,92.788,92.723,1.37480209]
[1772708020195,0.0211024,92.795,92.726,1.37480209]
[1772708020573,0.0211024,92.789,92.726,1.37480209]
[1772708021193,10.77586547,92.8,92.731,1.65912523]
[1772708021581,0.02301415,92.789,92.731,1.37480209]
[1772708022273,0.14216157,92.813,92.731,1.65912523]
[1772708022274,0.02391414,92.803,92.731,1.65912523]
[1772708022474,10.77365625,92.819,92.731,1.65912523]
[1772708022687,0.02391414,92.818,92.731,1.65912523]
[1772708023282,10.79728347,92.829,92.736,1.65912523]
[1772708023482,10.79728347,92.829,92.737,1.65912523]
[1772708023882,10.77166682,92.837,92.743,1.37480209]
[1772708024401,10.77166682,92.837,92.745,1.51696366]
[1772708024703,0.02564475,92.836,92.745,1.65912523]
[1772708024882,0.02564475,92.836,92.747,1.65912523]
[1772708025385,6.69225003,92.851,92.752,1.65912523]
[1772708025386,10.79668564,92.849,92.752,1.65912523]
[1772708025697,0.02734443,92.848,92.752,1.65912523]
[1772708025897,0.02734443,92.839,92.752,1.65912523]
[1772708026090,0.02734443,92.829,92.754,1.37480209]
[1772708026402,0.02734443,92.82,92.754,1.37480209]
[1772708026898,0.02815923,92.819,92.754,1.37480209]
[1772708027083,0.02815923,92.799,92.754,1.37480209]
[1772708027289,0.02815923,92.798,92.755,10.78108996]
[1772708027786,0.02815923,92.798,92.756,1.37480209]
[1772708028679,37.71592365,92.799,92.745,10.78225241]
[1772708028680,0.03059572,92.789,92.745,10.78225241]
[1772708028881,10.77597818,92.799,92.746,1.37480209]
[1772708029081,0.03059572,92.798,92.746,1.37480209]
[1772708029276,0.03059572,92.798,92.748,1.37480209]
[1772708029704,10.77597818,92.799,92.748,1.37480209]
[1772708030090,10.80738151,92.799,92.748,1.37480209]
[1772708030400,0.03140333,92.798,92.748,1.37480209]
[1772708031706,0.03140333,92.798,92.728,0.14216157]
[1772708031707,0.03218517,92.808,92.75,1.37480209]
[1772708032287,10.77377232,92.818,92.75,1.65912523]
[1772708032486,0.0329605,92.828,92.753,1.37480209]
[1772708032908,8.60266464,92.82,92.753,1.37480209]
[1772708033113,0.03372221,92.819,92.753,1.37480209]
[1772708033613,0.03372221,92.818,92.758,1.37480209]
[1772708033910,10.77261171,92.828,92.758,1.65912523]
[1772708034386,10.80708699,92.828,92.758,1.65912523]
[1772708034883,0.03521431,92.827,92.758,1.37480209]
[1772708035109,8.60266464,92.81,92.758,1.37480209]
[1772708035401,0.03521431,92.799,92.758,1.37480209]
[1772708035795,0.03521431,92.799,92.759,10.78062506]
[1772708035994,0.03521431,92.799,92.76,1.37480209]
[1772708036304,0.03521431,92.799,92.759,10.78062506]
[1772708036705,0.03521431,92.799,92.75,10.78167115]
[1772708037714,0.03521431,92.799,92.751,1.37480209]
[1772708038208,0.03740926,92.798,92.752,10.78143867]
[1772708040821,0.03740926,92.798,92.752,12.15624076]
[1772708040993,0.03740926,92.798,92.753,1.37480209]
[1772708042810,0.03740926,92.798,92.755,1.37480209]
[1772708043515,8.60266464,92.78,92.744,1.37480209]
[1772708043818,0.28432314,92.798,92.685,43.15649511]
[1772708043819,0.04156443,92.769,92.703,1.37480209]
[1772708044117,0.04156443,92.769,92.706,1.37480209]
[1772708044902,0.04156443,92.769,92.711,1.37480209]
[1772708046412,37.72405393,92.779,92.711,1.37480209]
[1772708046413,0.04290604,92.759,92.711,1.37480209]
[1772708046726,8.60266464,92.74,92.707,37.75335195]
[1772708046927,8.60266464,92.74,92.7,1.37480209]
[1772708046928,10.82650949,92.739,92.701,10.78737014]
[1772708047099,8.60266464,92.73,92.692,10.78841755]
[1772708047419,0.0435595,92.729,92.692,10.78841755]
[1772708047622,37.78388448,92.739,92.693,1.37480209]
[1772708048023,0.04422475,92.738,92.693,1.37480209]
[1772708048215,10.78234681,92.745,92.693,1.37480209]
[1772708048615,8.60266464,92.74,92.693,1.37480209]
[1772708048811,0.04422475,92.744,92.694,10.78818478]
[1772708049038,0.04422475,92.744,92.695,1.37480209]
[1772708050213,10.7817874,92.749,92.697,1.37480209]
[1772708050723,37.73625591,92.749,92.697,1.37480209]
[1772708051127,0.04610439,92.748,92.697,1.37480209]
[1772708051329,10.7817874,92.749,92.697,1.37480209]
[1772708051510,0.04610439,92.739,92.697,1.37480209]
[1772708052030,37.73625591,92.749,92.697,1.37480209]
[1772708052222,0.04671612,92.748,92.697,1.37480209]
[1772708052544,0.04671612,92.748,92.699,1.37480209]
[1772708053818,37.73625591,92.749,92.693,10.78823854]
[1772708053819,0.04792147,92.729,92.693,10.78823854]
[1772708054019,8.65058611,92.74,92.694,1.37480209]
[1772708054615,10.78294999,92.739,92.696,1.37480209]
[1772708055229,10.78190365,92.748,92.696,1.37480209]
[1772708055810,37.73666278,92.748,92.696,1.37480209]
[1772708056730,37.78636159,92.748,92.697,10.78783563]
[1772708057037,0.04969881,92.747,92.698,1.37480209]
[1772708058032,0.04969881,92.747,92.697,37.75742472]
[1772708058033,8.60266464,92.74,92.699,12.16240497]
[1772708058327,0.05028673,92.739,92.699,12.16240497]
[1772708059931,0.05197791,92.729,92.699,10.78760288]
[1772708060138,0.05197791,92.728,92.692,10.78841755]
[1772708060511,0.05197791,92.728,92.693,1.38396116]
[1772708060707,10.78411284,92.729,92.693,1.38396116]
[1772708061742,10.78318254,92.737,92.693,1.38396116]
[1772708063332,8.60266464,92.73,92.695,1.38396116]
[1772708063534,8.65627226,92.72,92.691,0.62473523]
[1772708063836,0.05360762,92.719,92.691,11.35878331]
[1772708064028,10.78318254,92.737,92.692,1.40198964]
[1772708064229,3.69383402,92.773,92.691,11.35878331]
[1772708064230,8.60266464,92.76,92.695,1.54415121]
[1772708064631,8.60266464,92.76,92.699,1.40198964]
[1772708064813,0.28432314,92.768,92.701,1.40198964]
[1772708065018,8.60266464,92.76,92.701,1.40198964]
[1772708065325,0.28432314,92.768,92.701,1.40198964]
[1772708065326,0.14216157,92.768,92.701,1.40198964]
[1772708065528,26.94886946,92.769,92.703,1.68631278]
[1772708065718,43.09032187,92.829,92.708,1.40198964]
[1772708065919,10.77728344,92.788,92.718,1.40198964]
[1772708066122,10.77728344,92.788,92.72,1.40198964]
[1772708066339,10.77597818,92.799,92.729,1.40198964]
[1772708066739,10.77597818,92.799,92.729,1.54415121]
[1772708067341,8.60266464,92.79,92.729,1.54415121]
[1772708067529,8.60266464,92.78,92.736,1.40198964]
[1772708067732,10.77713953,92.789,92.736,1.40198964]
[1772708068047,37.71998835,92.789,92.736,1.40198964]
[1772708068240,8.60266464,92.78,92.736,1.40198964]
[1772708068842,10.77713953,92.789,92.736,1.40198964]
[1772708069025,10.7765107,92.795,92.736,1.40198964]
[1772708069545,10.77597818,92.799,92.738,1.68631278]
[1772708071233,37.71592365,92.799,92.738,1.40198964]
[1772708071434,37.71592365,92.799,92.738,1.68631278]
[1772708072548,8.60266464,92.78,92.74,1.40198964]
[1772708072932,8.60266464,92.79,92.74,1.40198964]
[1772708074346,8.60266464,92.78,92.74,1.40198964]
[1772708074723,8.60266464,92.79,92.742,1.40198964]
[1772708074926,0.28432314,92.796,92.742,1.40198964]
[1772708075134,8.60266464,92.79,92.742,1.40198964]
[1772708076556,10.77713953,92.789,92.744,1.40198964]
[1772708080444,53.86852153,92.819,92.721,0.28432314]
[1772708080445,10.7752815,92.805,92.746,1.40198964]
[1772708080752,8.60461935,92.8,92.746,1.40198964]
[1772708081358,10.7752815,92.805,92.746,1.40198964]
[1772708084956,37.71185983,92.809,92.75,3.69383402]
[1772708085173,37.71185983,92.809,92.751,1.40198964]
[1772708085742,0.28432314,92.808,92.747,10.7820199]
[1772708085945,8.60461935,92.79,92.747,10.7820199]
[1772708086256,0.28432314,92.808,92.748,1.40198964]
[1772708086464,37.71185983,92.809,92.748,1.68631278]
[1772708086650,10.77481709,92.809,92.748,1.68631278]
[1772708087567,10.77481709,92.809,92.75,1.40198964]
[1772708087740,8.60461935,92.8,92.75,1.40198964]
[1772708088661,37.71185983,92.809,92.75,1.40198964]
[1772708089334,8.60461935,92.8,92.75,1.40198964]
[1772708089738,0.28432314,92.826,92.739,3.69383402]
[1772708089739,0.28432314,92.824,92.752,1.40198964]
[1772708090037,8.60461935,92.81,92.752,1.40198964]
[1772708090239,10.77295987,92.825,92.752,1.68631278]
[1772708090456,10.77295987,92.825,92.755,1.40198964]
[1772708090650,10.77295987,92.825,92.755,1.68631278]
[1772708090855,10.77295987,92.825,92.755,1.40198964]
[1772708090856,8.60461935,92.82,92.755,1.40198964]
[1772708091565,10.77295987,92.825,92.755,1.68631278]
[1772708091864,26.9290747,92.837,92.76,1.68631278]
[1772708092245,8.60461935,92.82,92.76,1.40198964]
[1772708092645,8.60461935,92.83,92.76,1.40198964]
[1772708093450,0.28432314,92.836,92.76,1.40198964]
[1772708093650,8.60461935,92.83,92.76,1.40198964]
[1772708094039,37.70373482,92.829,92.761,37.73137417]
[1772708094341,8.60461935,92.8,92.762,1.40198964]
[1772708094851,8.60461935,92.78,92.739,1.40198964]
[1772708095051,8.60461935,92.78,92.74,1.40198964]
[1772708096052,8.60461935,92.78,92.727,26.96080088]
[1772708096053,10.77830112,92.779,92.741,10.78271746]
[1772708096562,8.60461935,92.77,92.73,1.40198964]
[1772708097380,4.39045701,92.77,92.73,1.40198964]
[1772708100248,0.14216157,92.786,92.692,1.40198964]
[1772708100249,8.60461935,92.76,92.692,1.40198964]
[1772708100552,8.60461935,92.76,92.693,1.40198964]
[1772708100553,8.60461935,92.73,92.693,1.40198964]
[1772708100948,8.60461935,92.72,92.683,10.78945668]
[1772708101172,8.60461935,92.71,92.679,10.78990531]
[1772708101555,8.60461935,92.71,92.677,10.790096]
[1772708101866,8.60461935,92.71,92.681,10.78965221]
[1772708102660,8.60461935,92.73,92.692,1.40198964]
[1772708103172,0.14216157,92.739,92.692,1.40198964]
[1772708103359,8.60461935,92.73,92.692,1.40198964]
[1772708103562,8.60461935,92.72,92.692,10.78841755]
[1772708103757,8.60461935,92.73,92.693,1.40198964]
[1772708103964,10.78097373,92.756,92.693,1.40198964]
[1772708104164,10.77435273,92.813,92.699,3.69383402]
[1772708104480,8.60461935,92.78,92.718,1.40198964]
[1772708104650,0.28432314,92.778,92.723,1.40198964]
[1772708104851,37.72405393,92.779,92.723,1.40198964]
[1772708105046,937.0,93.346,92.723,1.40198964]
[1772708105047,10.77597818,92.799,92.723,1.40198964]
[1772708105257,10.77597818,92.799,92.723,1.68631278]
[1772708105463,37.71592365,92.799,92.723,1.68631278]
[1772708105865,0.28432314,92.798,92.723,1.68631278]
[1772708106675,37.71592365,92.799,92.723,1.68631278]
[1772708106859,37.71592365,92.799,92.725,1.68631278]
[1772708107452,0.14216157,92.798,92.725,1.68631278]
[1772708107649,0.28432314,92.798,92.725,1.68631278]
[1772708107848,8.60461935,92.79,92.725,1.40198964]
[1772708108049,8.60461935,92.77,92.725,1.40198964]
[1772708108471,0.28432314,92.779,92.725,1.40198964]
[1772708108877,10.77841729,92.778,92.726,37.7456161]
[1772708109061,0.28432314,92.777,92.727,1.40198964]
[1772708109266,10.77841729,92.778,92.727,1.40198964]
[1772708109459,0.28432314,92.777,92.727,1.40198964]
[1772708109776,8.60461935,92.77,92.727,1.40198964]
[1772708111375,8.60461935,92.77,92.701,0.28432314]
[1772708111376,43.08529092,92.84,92.729,1.40198964]
[1772708111554,43.08342622,92.844,92.733,0.14216157]
[1772708111751,8.60461935,92.81,92.736,1.40198964]
[1772708111977,0.28432314,92.809,92.74,1.40198964]
[1772708112161,0.28432314,92.809,92.74,1.54415121]
[1772708112364,8.60461935,92.81,92.74,1.54415121]
[1772708112765,0.14216157,92.809,92.74,1.54415121]
[1772708112980,0.28432314,92.809,92.74,1.54415121]
[1772708113173,0.28432314,92.799,92.74,1.40198964]
[1772708113382,10.77713953,92.789,92.742,1.40198964]
[1772708114278,10.77624058,92.797,92.742,1.40198964]
[1772708114484,0.28432314,92.816,92.745,1.68631278]
[1772708114871,8.60461935,92.81,92.745,1.68631278]
[1772708115970,0.14216157,92.816,92.747,1.68631278]
[1772708115971,37.70942196,92.815,92.747,1.68631278]
[1772708116176,8.60461935,92.86,92.816,1.40198964]
[1772708116475,8.60461935,92.87,92.816,1.40198964]
[1772708116653,10.76848895,92.864,92.816,1.40198964]
[1772708117280,8.60461935,92.86,92.816,1.40198964]
[1772708117758,0.02023063,92.859,92.816,1.40198964]
[1772708117962,0.02023063,92.858,92.817,10.7738884]
[1772708118159,0.02023063,92.858,92.818,1.40198964]
[1772708119385,0.28432314,92.849,92.809,1.40198964]
[1772708119573,8.60461935,92.84,92.801,10.77574595]
[1772708119777,8.60461935,92.84,92.802,1.40198964]
[1772708119975,0.02070561,92.848,92.803,10.77551372]
[1772708120480,0.02070561,92.848,92.804,1.40198964]
[1772708120674,11.05449837,92.849,92.804,1.40198964]
[1772708121074,0.02118047,92.878,92.807,1.68631278]
[1772708121670,8.60461935,92.87,92.807,1.40198964]
[1772708121886,0.02140661,92.868,92.807,1.40198964]
[1772708122075,0.02140661,92.867,92.809,1.40198964]
[1772708123579,0.02164543,92.859,92.809,1.40198964]
[1772708123976,5.6444489,92.907,92.814,1.40198964]
[1772708124191,10.76356747,92.906,92.82,1.68631278]
[1772708126173,0.1,92.91,92.825,1.68631278]
[1772708126482,0.1,92.91,92.821,177.7614979]
[1772708126483,0.1,92.91,92.848,1.35198964]
[1772708126685,0.12233649,92.943,92.86,1.33421872]
[1772708126898,0.22271222,92.966,92.862,1.61854186]
[1772708127066,0.22271222,92.966,92.879,1.33421872]
[1772708127266,8.60461935,92.96,92.881,1.61854186]
[1772708127473,8.60461935,92.95,92.881,1.61854186]
[1772708127688,0.22271222,92.949,92.881,1.61854186]
[1772708127984,8.60461935,92.95,92.881,1.61854186]
[1772708128192,0.22342511,92.959,92.886,1.36440052]
[1772708128193,10.75754641,92.958,92.886,1.36440052]
[1772708128367,10.75754641,92.958,92.888,1.64872366]
[1772708128774,10.75754641,92.958,92.889,1.36440052]
[1772708128976,10.75754641,92.958,92.89,1.64872366]
[1772708129383,0.22376942,92.949,92.89,1.36440052]
[1772708130097,8.60461935,92.94,92.89,1.36440052]
[1772708130395,0.22411637,92.959,92.892,1.36440052]
[1772708130689,0.28432314,92.981,92.892,1.36440052]
[1772708130690,0.22445804,92.949,92.892,1.36440052]
[1772708130876,0.22445804,92.939,92.892,1.36440052]
[1772708131270,8.60461935,92.93,92.892,1.36440052]
[1772708131464,8.60461935,92.93,92.891,10.76530557]
[1772708131778,0.22445804,92.919,92.869,1.36440052]
[1772708132164,37.65910972,92.939,92.873,1.36440052]
[1772708132364,8.60461935,92.93,92.873,1.36440052]
[1772708132798,0.22512946,92.939,92.876,1.36440052]
[1772708133511,8.60461935,92.92,92.876,1.36440052]
[1772708133676,0.22512946,92.929,92.876,1.36440052]
[1772708133992,8.60461935,92.92,92.876,1.36440052]
[1772708134487,10.75858804,92.949,92.878,1.36440052]
[1772708134692,37.65505814,92.949,92.878,1.36440052]
[1772708135405,0.22578748,92.939,92.878,1.36440052]
[1772708135570,37.88084562,92.949,92.878,1.36440052]
[1772708136068,0.22610642,92.948,92.878,1.36440052]
[1772708136275,10.75974563,92.939,92.879,37.68343758]
[1772708136477,10.75910185,92.945,92.88,1.64872366]
[1772708136893,8.60461935,92.94,92.88,1.36440052]
[1772708137192,0.22641933,92.939,92.88,1.36440052]
[1772708137567,8.60461935,92.94,92.88,1.36440052]
[1772708137767,0.22641933,92.939,92.88,1.36440052]
[1772708138371,10.75974563,92.939,92.881,37.68262615]
[1772708138572,10.75974563,92.939,92.882,1.36440052]
[1772708139386,0.22704518,92.93,92.882,1.36440052]
[1772708139592,10.75974563,92.939,92.882,1.36440052]
[1772708139894,10.00534508,92.96,92.886,1.36440052]
[1772708140278,0.22734785,92.959,92.886,1.36440052]
[1772708140493,0.22734785,92.959,92.891,1.36440052]
[1772708140697,10.98489426,92.958,92.891,1.64872366]
[1772708141009,0.22764595,92.969,92.894,3.69383402]
[1772708141303,0.22764595,92.949,92.895,1.36440052]
[1772708142580,0.22794575,92.947,92.897,1.36440052]
[1772708143082,10.75870379,92.948,92.897,1.36440052]
[1772708143785,0.22852808,92.947,92.897,1.36440052]
[1772708144680,10.75974563,92.939,92.898,10.76449439]
[1772708144882,0.22882963,92.938,92.893,10.76497391]
[1772708145077,0.22882963,92.929,92.891,21.99661856]
[1772708145880,0.22882963,92.929,92.892,10.76518968]
[1772708146075,0.22882963,92.929,92.891,21.99661856]
[1772708146684,37.66356748,92.928,92.891,21.99661856]
[1772708146902,0.22940977,92.92,92.891,21.99661856]
[1772708147404,37.66356748,92.928,92.892,1.36440052]
[1772708148904,10.76101928,92.928,92.894,1.38512963]
[1772708149082,37.65992015,92.937,92.894,1.38512963]
[1772708149282,37.65992015,92.937,92.864,43.07349641]
[1772708149283,1.29526907,92.929,92.867,3.69383402]
[1772708149481,10.00534508,92.93,92.867,3.69383402]
[1772708149482,1.29526907,92.927,92.867,3.69383402]
[1772708149702,1.07712193,92.926,92.867,3.69383402]
[1772708149886,1.07712193,92.926,92.855,39.38958016]
[1772708150981,1.07712193,92.926,92.856,171.74990706]
[1772708151183,11.83628874,92.944,92.862,1.38512963]
[1772708151487,11.83628874,92.944,92.861,0.28432314]
[1772708151488,11.83628874,92.944,92.869,1.38512963]
[1772708151687,1.29526907,92.917,92.869,1.38512963]
[1772708151996,444.95308624,92.918,92.869,1.38512963]
[1772708152591,376.62360143,92.918,92.862,1.38512963]
[1772708153003,312.92499201,92.918,92.864,1.38512963]
[1772708153199,1.29526907,92.941,92.869,1.38512963]
[1772708153384,1.07712193,92.94,92.872,1.38512963]
[1772708153588,1.29526907,92.939,92.872,1.38512963]
[1772708153799,1.29526907,92.939,92.863,220.75530617]
[1772708153800,1.29526907,92.929,92.873,1.38512963]
[1772708154134,297.61294557,92.927,92.873,1.38512963]
[1772708154310,243.59363003,92.927,92.873,1.5272912]
[1772708154802,1.29526907,92.938,92.874,1.38512963]
[1772708155103,1.29526907,92.947,92.881,1.38512963]
[1772708155287,1.29526907,92.945,92.881,1.66945277]
[1772708155486,10.75891461,92.947,92.881,1.66945277]
[1772708155487,1.29526907,92.943,92.881,1.66945277]
[1772708155690,1.29526907,92.941,92.881,1.66945277]
[1772708156016,1.29526907,92.937,92.881,1.38512963]
[1772708156214,2.372391,92.937,92.881,1.66945277]
[1772708156507,1.07712193,92.937,92.881,1.66945277]
[1772708156686,1.29526907,92.936,92.881,1.66945277]
[1772708156886,1.29526907,92.934,92.881,1.38512963]
[1772708157081,1.29526907,92.934,92.88,3.69383402]
[1772708157082,1.29526907,92.93,92.883,1.38512963]
[1772708157291,1.29526907,92.928,92.883,1.38512963]
[1772708157488,1.29526907,92.926,92.883,1.38512963]
[1772708157789,1.29526907,92.924,92.883,1.38512963]
[1772708158600,1.29526907,92.923,92.885,1.38512963]
[1772708159286,1.29526907,92.921,92.884,10.76611687]
[1772708159591,148.31000227,92.923,92.885,1.38512963]
[1772708160299,1.29526907,92.921,92.884,10.76611687]
[1772708160495,1.29526907,92.922,92.885,1.38512963]
[1772708160695,1.29526907,92.921,92.887,1.38512963]
[1772708161412,1.29526907,92.919,92.887,1.38512963]
[1772708161810,1.29526907,92.917,92.887,1.38512963]
[1772708161986,1.29526907,92.915,92.887,1.38512963]
[1772708162185,1.07712193,92.914,92.887,1.38512963]
[1772708162403,2.372391,92.914,92.887,1.38512963]
[1772708162599,134.5192278,94.384,92.889,1.38512963]
[1772708162600,37.93533056,92.959,92.889,1.38512963]
[1772708162891,37.65100742,92.959,92.889,1.38512963]
[1772708163092,10.00534508,92.94,92.889,1.38512963]
[1772708163291,10.00534508,92.94,92.888,37.67978639]
[1772708163292,148.31000227,92.913,92.888,10.76565325]
[1772708163809,148.31000227,92.913,92.883,10.76612725]
[1772708163986,148.31000227,92.913,92.879,10.76667472]
[1772708164298,10.00534508,92.91,92.878,39.37982586]
[1772708164690,1.29526907,92.907,92.878,39.37982586]
[1772708165611,1.29526907,92.907,92.841,3.69383402]
[1772708165612,0.84011251,92.889,92.832,1.45516822]
[1772708165913,0.28432314,92.907,92.831,32.32712037]
[1772708165914,0.84051393,92.869,92.831,32.32712037]
[1772708166212,0.84051393,92.869,92.832,1.45516822]
[1772708166808,0.89046886,92.867,92.832,1.45516822]
[1772708167895,0.89046886,92.867,92.831,32.32712037]
[1772708168611,0.89046886,92.867,92.831,43.09926795]
[1772708169007,53.82736573,92.89,92.831,31.12164692]
[1772708169008,10.00534508,92.85,92.831,31.12164692]
[1772708169309,148.31000227,92.849,92.815,10.77412056]
[1772708170212,1.29526907,92.883,92.818,3.69383402]
[1772708170411,1.89854882,92.896,92.819,0.28432314]
[1772708170728,1.89854882,92.895,92.819,0.28432314]
[1772708171226,0.28432314,92.922,92.819,0.28432314]
[1772708171227,10.76226855,92.918,92.839,1.66945277]
[1772708171402,37.66771205,92.918,92.839,1.66945277]
[1772708171605,26.90195227,92.931,92.839,1.66945277]
[1772708171811,10.00534508,92.94,92.849,1.38512963]
[1772708173003,1.29526907,92.938,92.854,1.38512963]
[1772708173314,1.29526907,92.938,92.854,1.66945277]
[1772708173828,1.29526907,92.929,92.854,1.66945277]
[1772708174617,1.29526907,92.929,92.859,1.38512963]
[1772708174812,1.29526907,92.929,92.861,1.38512963]
[1772708175014,1.29526907,92.929,92.866,1.38512963]
[1772708175206,1.29526907,92.929,92.866,1.66945277]
[1772708175811,1.29526907,92.959,92.866,1.66945277]
[1772708176003,1.29526907,92.958,92.887,1.38512963]
[1772708176720,1.29526907,92.971,92.889,1.66945277]
[1772708176899,1.29526907,92.971,92.9,1.38512963]
[1772708177099,1.29526907,92.971,92.89,3.69383402]
[1772708177100,1.29526907,92.971,92.905,1.38512963]
[1772708177419,1.29526907,92.969,92.905,1.66945277]
[1772708178620,1.29526907,92.969,92.905,1.38512963]
[1772708179122,1.29526907,92.969,92.882,86.41493822]
[1772708179123,1.93585373,92.967,92.909,3.69383402]